fUSD/lending_fUSD_20260129
["ID","MTS","AMOUNT","RATE_DAILY","PERIOD"]
[404015475,1769723446973,-300.0,0.00017999,2]
[404015476,1769723446982,-666.0,0.00017999,2]
[404015477,1769723446991,-337371.03465675,0.00018,2]
[404015478,1769723448206,-18872.80445432,0.00018,2]
[404015479,1769723448610,-1879.927912,0.00018,2]
[404015480,1769723448621,-2372.22640451,0.00018,2]
[404015481,1769723448631,-128675.62685557,0.00018,2]
[404015482,1769723448700,-564.11572434,0.00018,2]
[404015483,1769723448712,-11583.83078065,0.00018,2]
[404015484,1769723448722,-59622.73128669,0.00018,2]
[404015485,1769723448744,-4865.58111011,0.00018,2]
[404015486,1769723448754,-577827.81905171,0.00018,2]
[404015487,1769723448980,367.79222122,0.00014099,2]
[404015488,1769723450933,-19456.7317856,0.00018,2]
[404015489,1769723451419,-14847.77263745,0.00018,2]
[404015490,1769723451469,-73.48074287,0.00018,2]
[404015491,1769723452372,-243404.77782372,0.00018,2]
[404015492,1769723452456,-391.43999997,0.00018,2]
[404015493,1769723452476,-4219.85,0.00018,2]
[404015494,1769723452521,-2413.45455467,0.00018,2]
[404015495,1769723452560,-2738.23148124,0.00018,2]
[404015496,1769723452592,-2261.74114981,0.00018,2]
[404015497,1769723547524,569.10652081,0.000273,120]
[404015498,1769723547547,621.82064298,0.000273,120]
[404015499,1769723547570,262.95783621,0.000273,120]
[404015502,1769723620174,298.05927876,0.00010587,2]
[404015505,1769723860851,405.68501265,0.00010587,2]
[404015506,1769724139651,4944.9,0.0001297,2]
[404015507,1769724151623,43.26573636,0.00027164,71]
[404015508,1769724332108,-1023.449,0.00013785,2]
[404015509,1769724332129,-286.31661213,0.00013855,2]
[404015510,1769724332150,-1200.0,0.00013954,2]
[404015511,1769724332171,-74.99411148,0.00013955,2]
[404015513,1769724437710,-312.71073065,0.00013955,2]
[404015514,1769724441100,-321.60746844,0.00013955,2]
[404015515,1769724449086,-181.56920956,0.00013955,2]
[404015516,1769724450136,1500.0,0.000138,5]
[404015517,1769724451978,3100.0,0.000139,5]
[404015518,1769724547338,-1282.950849,0.00013785,2]
[404015519,1769724550113,-500.0,0.00013855,2]
[404015520,1769724550136,-3024.54947987,0.00013955,2]
[404015521,1769724550158,-364.297,0.00013955,2]
[404015522,1769724550180,-250.0,0.00013966,2]
[404015523,1769724550201,-600.0,0.00013976,2]
[404015524,1769724550222,-286.31661211,0.00013997,2]
[404015525,1769724550265,-300.0,0.00014137,2]
[404015526,1769724550305,-300.0,0.00014137,2]
[404015527,1769724550349,-300.0,0.00014137,2]
[404015528,1769724550390,-1200.0,0.00014138,2]
[404015529,1769724550432,-300.0,0.00014139,2]
[404015530,1769724550456,-300.0,0.00014139,2]
[404015531,1769724550477,-286.31661211,0.00014139,2]
[404015532,1769724550498,-562.47335601,0.0001414,2]
[404015533,1769724550519,-300.0,0.00014166,2]
[404015534,1769724550541,-1194.83732824,0.00014167,2]
[404015535,1769724550561,-150.0,0.00014231,2]
[404015536,1769724550584,-148.00437166,0.00014232,2]
[404015537,1769724555069,-343.39119158,0.00014232,2]
[404015538,1769724555392,-151.0,0.00014232,2]
[404015539,1769724555416,-140.76394862,0.00014232,2]
[404015540,1769724555445,-10.23605138,0.00014232,2]
[404015541,1769724555465,-151.0,0.00014232,2]
[404015542,1769724555486,-151.0,0.00014232,2]
[404015543,1769724555509,-151.0,0.00014232,2]
[404015544,1769724555529,-200.0,0.00014232,2]
[404015545,1769724555552,-151.0,0.00014232,2]
[404015546,1769724555573,-151.0,0.00014232,2]
[404015547,1769724555593,-151.0,0.00014232,2]
[404015548,1769724555614,-500.0,0.00014232,2]
[404015549,1769724555636,-151.0,0.00014232,2]
[404015550,1769724555657,-500.0,0.00014232,2]
[404015551,1769724555677,-151.0,0.00014232,2]
[404015552,1769724555697,-500.0,0.00014232,2]
[404015553,1769724555718,-151.0,0.00014232,2]
[404015554,1769724555738,-500.0,0.00014232,2]
[404015555,1769724555759,-151.0,0.00014232,2]
[404015556,1769724555781,-500.0,0.00014232,2]
[404015557,1769724555804,-151.0,0.00014232,2]
[404015558,1769724555827,-500.0,0.00014232,2]
[404015559,1769724555849,-151.0,0.00014232,2]
[404015560,1769724555870,-500.0,0.00014232,2]
[404015561,1769724555891,-151.0,0.00014232,2]
[404015562,1769724555910,-500.0,0.00014232,2]
[404015563,1769724555933,-151.0,0.00014232,2]
[404015564,1769724555956,-500.0,0.00014232,2]
[404015565,1769724555978,-500.0,0.00014232,2]
[404015566,1769724556000,-151.0,0.00014232,2]
[404015567,1769724556020,-500.0,0.00014232,2]
[404015568,1769724556040,-151.0,0.00014232,2]
[404015569,1769724556059,-500.0,0.00014232,2]
[404015570,1769724556078,-151.0,0.00014232,2]
[404015571,1769724556099,-151.0,0.00014232,2]
[404015572,1769724556117,-200.0,0.00014232,2]
[404015573,1769724556137,-151.0,0.00014232,2]
[404015574,1769724556157,-151.0,0.00014232,2]
[404015575,1769724556182,-151.0,0.00014232,2]
[404015576,1769724556204,-151.0,0.00014232,2]
[404015577,1769724556224,-151.0,0.00014232,2]
[404015578,1769724556247,-151.0,0.00014232,2]
[404015579,1769724556287,-151.0,0.00014232,2]
[404015580,1769724556317,-151.0,0.00014232,2]
[404015581,1769724556338,-151.0,0.00014232,2]
[404015582,1769724556358,-151.0,0.00014232,2]
[404015583,1769724556378,-151.0,0.00014232,2]
[404015584,1769724556397,-500.0,0.00014232,2]
[404015585,1769724556421,-333.27596216,0.00014232,2]
[404015586,1769724556443,-151.0,0.00014237,2]
[404015587,1769724556465,-151.0,0.00014237,2]
[404015588,1769724556485,-1000.0,0.00014238,2]
[404015589,1769724556505,-30147.36169241,0.00014239,2]
[404015590,1769724559235,-424.34829001,0.00014239,2]
[404015591,1769724559256,-326.53,0.00014239,2]
[404015592,1769724559278,-17391.79956528,0.00014239,2]
[404015593,1769724559302,-620.29022114,0.00014239,2]
[404015594,1769724559324,-343.6506497,0.00014239,2]
[404015595,1769724559347,-500.0,0.00014239,2]
[404015596,1769724559368,-500.0,0.00014239,2]
[404015597,1769724559390,-500.0,0.00014239,2]
[404015598,1769724559413,-195.3562199,0.00014239,2]
[404015599,1769724559435,-500.0,0.00014239,2]
[404015600,1769724559458,-500.0,0.00014239,2]
[404015601,1769724559481,-500.0,0.00014239,2]
[404015602,1769724559504,-275.81348567,0.00014239,2]
[404015603,1769724559525,-500.0,0.00014239,2]
[404015604,1769724559555,-500.0,0.00014239,2]
[404015605,1769724559580,-500.0,0.00014239,2]
[404015606,1769724559605,-500.0,0.00014239,2]
[404015607,1769724559629,-500.0,0.00014239,2]
[404015608,1769724559655,-500.0,0.00014239,2]
[404015609,1769724559680,-500.0,0.00014239,2]
[404015610,1769724559707,-500.0,0.00014239,2]
[404015611,1769724559732,-500.0,0.00014239,2]
[404015612,1769724559759,-500.0,0.00014239,2]
[404015613,1769724559785,-201.97973863,0.00014239,2]
[404015614,1769724559810,-500.0,0.00014239,2]
[404015615,1769724559835,-500.0,0.00014239,2]
[404015616,1769724559862,-500.0,0.00014239,2]
[404015617,1769724559888,-500.0,0.00014239,2]
[404015618,1769724559911,-500.0,0.00014239,2]
[404015619,1769724559935,-500.0,0.00014239,2]
[404015620,1769724559959,-500.0,0.00014239,2]
[404015621,1769724559981,-500.0,0.00014239,2]
[404015622,1769724560005,-500.0,0.00014239,2]
[404015623,1769724560028,-500.0,0.00014239,2]
[404015624,1769724560052,-500.0,0.00014239,2]
[404015625,1769724560074,-500.0,0.00014239,2]
[404015626,1769724560096,-500.0,0.00014239,2]
[404015627,1769724560119,-500.0,0.00014239,2]
[404015628,1769724560141,-500.0,0.00014239,2]
[404015629,1769724560161,-647.99788803,0.00014239,2]
[404015630,1769724560186,-20537.83809727,0.0001424,2]
[404015631,1769724560221,-5241.92444436,0.0001424,2]
[404015632,1769724569095,-7869.8799719,0.00014239,2]
[404015633,1769724569120,-1190.8714773,0.0001424,2]
[404015640,1769724631819,-160.68,0.0001423,2]
[404015641,1769724631830,-160.68,0.0001423,2]
[404015642,1769724631840,-281.61601525,0.0001423,2]
[404015643,1769724631852,-300.0,0.00014232,2]
[404015644,1769724631861,-195.0,0.00014232,2]
[404015645,1769724631871,-501.59130864,0.00014235,2]
[404015646,1769724631881,-195.0,0.00014237,2]
[404015647,1769724631890,-151.0,0.00014237,2]
[404015648,1769724631899,-151.0,0.00014237,2]
[404015649,1769724631909,-1708.27267611,0.00014239,2]
[404015650,1769724631920,-2734.76506803,0.00014239,2]
[404015651,1769724631930,-1322.35197334,0.00014239,2]
[404015652,1769724631939,-300.0,0.00014239,2]
[404015653,1769724631948,-1200.0,0.00014239,2]
[404015654,1769724631958,-300.0,0.00014239,2]
[404015655,1769724631966,-944.68250677,0.00014239,2]
[404015656,1769724631977,-4253.8,0.00014239,2]
[404015659,1769724632034,-44396.92269113,0.00014239,2]
[404015660,1769724632045,-213.05954818,0.0001424,2]
[404015661,1769724632055,-113823.17099171,0.0001424,2]
[404015662,1769724632066,-22169.86154914,0.0001424,2]
[404015667,1769724632103,-657.85661962,0.0001424,2]
[404015669,1769724632114,-344.58,0.0001424,2]
[404015671,1769724632125,-1783.43233148,0.0001424,2]
[404015673,1769724632136,-476.68734053,0.0001424,2]
[404015674,1769724632147,-1178.1723805,0.0001424,2]
[404015679,1769724632165,-550.41909117,0.0001424,2]
[404015682,1769724632176,-786.41044328,0.0001424,2]
[404015685,1769724632187,-1501.99056459,0.0001424,2]
[404015715,1769724638088,-266.8735465,0.0001423,2]
[404015719,1769724638722,-58.7064535,0.0001423,2]
[404015720,1769724638736,-325.58,0.0001423,2]
[404015721,1769724638745,-325.58,0.0001423,2]
[404015722,1769724638754,-325.58,0.0001423,2]
[404015723,1769724638763,-185.56235498,0.0001423,2]
[404015724,1769724638774,-140.01764502,0.0001423,2]
[404015725,1769724638783,-617.75735498,0.0001424,2]
[404015726,1769724638826,-1298.91298725,0.0001424,2]
[404015727,1769724638836,-7520.0,0.0001424,2]
[404015728,1769724638889,-999.99180923,0.0001424,2]
[404015729,1769724638915,-580.23789574,0.0001424,2]
[404015730,1769724638927,-1867.36133801,0.0001424,2]
[404015731,1769724639983,-4329.6126,0.0001424,2]
[404015732,1769724639996,-954.55,0.0001424,2]
[404015733,1769724640146,-850.27348991,0.0001424,2]
[404015734,1769724640158,-1010017.96804409,0.0001424,2]
[404015735,1769724640271,-387.37693892,0.0001424,2]
[404015736,1769724640342,-3111.39193072,0.0001424,2]
[404015737,1769724640353,-391.98548749,0.0001424,2]
[404015738,1769724640365,-48164.4411925,0.0001424,2]
[404015739,1769724640404,-571.43924,0.0001424,2]
[404015740,1769724640418,-256.505836,0.0001424,2]
[404015741,1769724640429,-730.7874852,0.0001424,2]
[404015742,1769724640441,-849.23220107,0.0001424,2]
[404015743,1769724640452,-1423.9205178,0.0001424,2]
[404015751,1769724643753,-1155.56894319,0.0001424,2]
[404015752,1769724643764,-5100.93599827,0.0001424,2]
[404015753,1769724644028,-60644.31507868,0.0001424,2]
[404015754,1769724644038,-500.0,0.00014339,2]
[404015755,1769724644047,-526.08520541,0.00014339,2]
[404015756,1769724644056,-326.53,0.00014513,2]
[404015757,1769724644065,-17391.79956528,0.00014646,2]
[404015758,1769724644075,-5765.38971742,0.00014646,2]
[404015759,1769724644084,-562.47335595,0.00014767,2]
[404015760,1769724644093,-500.0,0.0001478,2]
[404015761,1769724644103,-326.53,0.00014787,2]
[404015762,1769724644112,-166.66,0.00014924,2]
[404015763,1769724644122,-17391.79956528,0.00015053,2]
[404015764,1769724644131,-5765.38971742,0.00015053,2]
[404015765,1769724644142,-1752.37,0.00015134,2]
[404015766,1769724644153,-300.0,0.00015164,2]
[404015767,1769724644163,-166.66,0.00015238,2]
[404015768,1769724644173,-690.0,0.00015268,2]
[404015769,1769724644183,-681.0,0.00015299,2]
[404015770,1769724644193,-438.0,0.00015337,2]
[404015771,1769724644203,-600.0,0.00015351,2]
[404015772,1769724644213,-600.0,0.00015351,2]
[404015773,1769724644222,-250.0,0.00015351,2]
[404015774,1769724644232,-300.0,0.00015351,2]
[404015775,1769724644244,-250.0,0.00015351,2]
[404015776,1769724644255,-255.0,0.00015355,2]
[404015777,1769724644266,-562.47335595,0.00015393,2]
[404015778,1769724644275,-17391.79956528,0.00015459,2]
[404015779,1769724644284,-5765.38971742,0.00015459,2]
[404015780,1769724644294,-327.0,0.00015486,2]
[404015781,1769724644303,-420.0,0.00015486,2]
[404015782,1769724644313,-1200.0,0.00015487,2]
[404015783,1769724644322,-166.66,0.00015552,2]
[404015784,1769724644332,-420.0,0.00015596,2]
[404015785,1769724644344,-500.0,0.00015599,2]
[404015786,1769724644354,-600.0,0.00015653,2]
[404015787,1769724644363,-239.77721828,0.00015653,2]
[404015788,1769724644372,-362.4743215,0.00015653,2]
[404015789,1769724644383,-300.0,0.00015653,2]
[404015790,1769724644393,-195.0,0.00015653,2]
[404015791,1769724644402,-1680.0,0.00015663,2]
[404015792,1769724644413,-1500.0,0.00015709,2]
[404015793,1769724644424,-270.56,0.00015712,2]
[404015794,1769724644434,-7869.8799719,0.00015753,2]
[404015795,1769724644444,-49595.4051979,0.00015784,2]
[404015796,1769724644453,-17391.79956528,0.00015866,2]
[404015797,1769724644463,-5765.38971742,0.00015866,2]
[404015798,1769724644473,-166.66,0.00015866,2]
[404015799,1769724644483,-297.87,0.00015884,7]
[404015800,1769724644493,-5304.6,0.00015896,2]
[404015801,1769724644503,-3442.48960295,0.0001596,2]
[404015802,1769724644512,-786.0,0.00015988,2]
[404015803,1769724644522,-200.0,0.0001599,2]
[404015804,1769724644533,-150.0,0.00016,2]
[404015805,1769724644542,-562.47335595,0.0001602,2]
[404015806,1769724644552,-500.0,0.0001602,2]
[404015807,1769724644563,-1906.67,0.00016087,2]
[404015808,1769724644572,-166.66,0.00016181,2]
[404015809,1769724644583,-17391.79956528,0.00016273,2]
[404015810,1769724644592,-5765.38971742,0.00016273,2]
[404015811,1769724644602,-500.0,0.00016294,2]
[404015812,1769724644611,-4443.54,0.00016294,2]
[404015813,1769724644621,-2020.37175796,0.00016324,2]
[404015814,1769724644630,-500.0,0.00016356,2]
[404015815,1769724644641,-151.0,0.0001637,2]
[404015816,1769724644650,-500.37082769,0.00016373,2]
[404015817,1769724644661,-492.9262075,0.00016373,2]
[404015818,1769724644672,-562.1642859,0.00016373,2]
[404015819,1769724644681,-506.79391477,0.00016373,2]
[404015820,1769724644691,-500.0,0.00016373,2]
[404015821,1769724644700,-500.0,0.00016373,2]
[404015822,1769724644710,-500.0,0.00016373,2]
[404015823,1769724644720,-500.0,0.00016373,2]
[404015824,1769724644729,-500.0,0.00016373,2]
[404015825,1769724644739,-290.6541109,0.00016373,2]
[404015826,1769724644749,-500.0,0.00016373,2]
[404015827,1769724644758,-500.0,0.00016373,2]
[404015828,1769724644768,-502.1314458,0.00016373,2]
[404015829,1769724644777,-500.0,0.00016373,2]
[404015830,1769724644787,-500.0,0.00016373,2]
[404015831,1769724644797,-500.0,0.00016373,2]
[404015832,1769724644806,-500.0,0.00016373,2]
[404015833,1769724644815,-500.0,0.00016373,2]
[404015834,1769724644825,-500.0,0.00016373,2]
[404015835,1769724644834,-500.0,0.00016373,2]
[404015836,1769724644843,-500.37981101,0.00016373,2]
[404015837,1769724644853,-800.0,0.00016438,2]
[404015838,1769724644863,-224.63,0.00016474,2]
[404015839,1769724644874,-166.66,0.00016495,2]
[404015840,1769724644884,-3823.0,0.00016552,2]
[404015841,1769724644894,-433.0,0.00016565,2]
[404015842,1769724644903,-562.47335595,0.00016647,2]
[404015843,1769724644912,-5027.16918753,0.0001668,2]
[404015848,1769724645677,-12364.63037775,0.0001668,2]
[404015849,1769724645687,-4148.00146254,0.0001668,2]
[404015851,1769724645698,-1617.38825488,0.0001668,2]
[404015852,1769724645707,-2832.0,0.0001672,2]
[404015853,1769724645716,-3709.99,0.00016816,2]
[404015854,1769724645726,-3296.50490103,0.00016823,2]
[404015855,1769724645776,-3293.43159897,0.00016823,2]
[404015856,1769724645786,-1857.0,0.00016831,2]
[404015857,1769724645795,-1857.0,0.00016846,2]
[404015858,1769724645804,-7073.87,0.00016884,2]
[404015859,1769724645813,-1857.0,0.00016895,2]
[404015860,1769724645823,-3955.26,0.00016901,2]
[404015861,1769724645832,-1857.0,0.00016912,2]
[404015862,1769724645841,-1000.0,0.00016921,2]
[404015863,1769724645850,-1000.0,0.00016921,2]
[404015864,1769724645859,-726.99112244,0.00016921,2]
[404015865,1769724645870,-321.78089856,0.00016921,2]
[404015866,1769724645879,-1000.0,0.00016921,2]
[404015867,1769724645888,-1007.7084502,0.00016921,2]
[404015868,1769724645898,-1000.0,0.00016921,2]
[404015869,1769724645907,-486.15858788,0.00016921,2]
[404015870,1769724645916,-1001.11024626,0.00016921,2]
[404015871,1769724645925,-1000.0,0.00016921,2]
[404015872,1769724645935,-1000.0,0.00016921,2]
[404015873,1769724645944,-1000.0,0.00016921,2]
[404015874,1769724645955,-9999.99,0.00016922,2]
[404015875,1769724645966,-250.98056661,0.00016922,2]
[404015876,1769724645978,-471.77833753,0.00016922,2]
[404015877,1769724645991,-445.90494493,0.00016922,2]
[404015878,1769724646002,-554.39615093,0.00016922,2]
[404015879,1769724646012,-484.00372907,0.00016922,2]
[404015880,1769724646023,-5035.55627093,0.00016922,2]
[404015881,1769724646033,-150.99,0.00016922,2]
[404015882,1769724646043,-150.99,0.00016922,2]
[404015883,1769724646052,-533.0,0.00016963,2]
[404015884,1769724646062,-233.69936596,0.00016983,2]
[404015885,1769724646072,-250.0,0.00016986,10]
[404015886,1769724646173,-250.0,0.00016986,10]
[404015887,1769724646184,-250.0,0.00016986,10]
[404015888,1769724646194,-250.0,0.00016986,10]
[404015889,1769724646204,-235.0,0.00016986,10]
[404015890,1769724646214,-500.0,0.00017,2]
[404015891,1769724646223,-500.0,0.00017,7]
[404015892,1769724646232,-500.0,0.00017,7]
[404015893,1769724646242,-500.0,0.00017,7]
[404015894,1769724646252,-564.04,0.00017,7]
[404015895,1769724646262,-250.0,0.00017,2]
[404015896,1769724646271,-221.0,0.00017016,2]
[404015897,1769724646281,-322.6107,0.00017037,2]
[404015898,1769724646290,-209.40437685,0.00017037,2]
[404015899,1769724646300,-1000.0,0.00017037,2]
[404015900,1769724646310,-1000.0,0.00017037,2]
[404015901,1769724646321,-500.0,0.00017037,2]
[404015902,1769724646330,-1000.0,0.00017037,2]
[404015903,1769724646342,-500.0,0.00017037,2]
[404015904,1769724646352,-1000.0,0.00017037,2]
[404015905,1769724646363,-500.0,0.00017037,2]
[404015906,1769724646373,-500.0,0.00017037,2]
[404015907,1769724646385,-500.0,0.00017037,2]
[404015908,1769724646394,-1000.0,0.00017037,2]
[404015909,1769724646403,-500.0,0.00017037,2]
[404015910,1769724646414,-500.0,0.00017037,2]
[404015911,1769724646423,-500.0,0.00017037,2]
[404015913,1769724646432,-1000.0,0.00017037,2]
[404015914,1769724646441,-500.0,0.00017037,2]
[404015915,1769724646450,-500.0,0.00017037,2]
[404015916,1769724646459,-500.0,0.00017037,2]
[404015917,1769724646469,-1000.0,0.00017037,2]
[404015918,1769724646479,-500.0,0.00017037,2]
[404015919,1769724646488,-500.0,0.00017037,2]
[404015921,1769724646498,-1000.0,0.00017037,2]
[404015922,1769724646507,-500.0,0.00017037,2]
[404015923,1769724646515,-500.0,0.00017037,2]
[404015924,1769724646524,-500.0,0.00017037,2]
[404015925,1769724646533,-1000.0,0.00017037,2]
[404015926,1769724646542,-500.0,0.00017037,2]
[404015927,1769724646552,-500.0,0.00017037,2]
[404015928,1769724646561,-500.0,0.00017037,2]
[404015929,1769724646571,-1000.0,0.00017037,2]
[404015930,1769724646579,-500.0,0.00017037,2]
[404015931,1769724646588,-500.0,0.00017037,2]
[404015932,1769724646598,-500.0,0.00017037,2]
[404015934,1769724646607,-1000.0,0.00017037,2]
[404015935,1769724646617,-500.0,0.00017037,2]
[404015936,1769724646626,-500.0,0.00017037,2]
[404015937,1769724646635,-500.0,0.00017037,2]
[404015938,1769724646645,-500.0,0.00017037,2]
[404015939,1769724646654,-500.0,0.00017037,2]
[404015940,1769724646663,-500.0,0.00017037,2]
[404015941,1769724646673,-500.0,0.00017037,2]
[404015942,1769724646683,-500.0,0.00017037,2]
[404015943,1769724646703,-500.0,0.00017037,2]
[404015945,1769724646722,-500.0,0.00017037,2]
[404015948,1769724646739,-250.0,0.00017037,2]
[404015949,1769724646749,-500.0,0.00017037,2]
[404015950,1769724646759,-250.0,0.00017037,2]
[404015951,1769724646768,-250.0,0.00017037,2]
[404015952,1769724646778,-250.0,0.00017037,2]
[404015953,1769724646787,-250.0,0.00017037,2]
[404015954,1769724646796,-250.0,0.00017037,2]
[404015955,1769724646806,-250.0,0.00017037,2]
[404015956,1769724646815,-250.0,0.00017037,2]
[404015957,1769724646826,-250.0,0.00017037,2]
[404015958,1769724646835,-250.0,0.00017037,2]
[404015959,1769724646845,-174.61919141,0.00017037,2]
[404015960,1769724646854,-250.0,0.00017037,2]
[404015961,1769724646863,-250.0,0.00017037,2]
[404015962,1769724646872,-250.0,0.00017037,2]
[404015963,1769724646881,-250.0,0.00017037,2]
[404015964,1769724646890,-250.0,0.00017037,2]
[404015965,1769724646898,-250.0,0.00017037,2]
[404015966,1769724646907,-250.0,0.00017037,2]
[404015967,1769724646916,-250.0,0.00017037,2]
[404015968,1769724646925,-250.0,0.00017037,2]
[404015969,1769724646934,-250.0,0.00017037,2]
[404015970,1769724646943,-250.0,0.00017037,2]
[404015971,1769724646952,-250.0,0.00017037,2]
[404015972,1769724646960,-250.0,0.00017037,2]
[404015973,1769724646969,-250.0,0.00017037,2]
[404015974,1769724646978,-250.0,0.00017037,2]
[404015975,1769724646987,-250.0,0.00017037,2]
[404015976,1769724646996,-250.0,0.00017037,2]
[404015977,1769724647006,-250.0,0.00017037,2]
[404015978,1769724647015,-250.0,0.00017037,2]
[404015979,1769724647024,-250.0,0.00017037,2]
[404015980,1769724647033,-250.0,0.00017037,2]
[404015981,1769724647043,-250.0,0.00017037,2]
[404015982,1769724647056,-250.0,0.00017037,2]
[404015983,1769724647066,-250.0,0.00017037,2]
[404015984,1769724647076,-250.0,0.00017037,2]
[404015985,1769724647085,-250.0,0.00017037,2]
[404015986,1769724647095,-250.0,0.00017037,2]
[404015987,1769724647104,-250.0,0.00017037,2]
[404015988,1769724647113,-250.0,0.00017037,2]
[404015989,1769724647123,-209.40437684,0.00017037,2]
[404015990,1769724647133,-250.0,0.00017037,2]
[404015991,1769724647143,-250.0,0.00017037,2]
[404015992,1769724647154,-250.0,0.00017037,2]
[404015993,1769724647163,-250.0,0.00017037,2]
[404015994,1769724647172,-250.0,0.00017037,2]
[404015995,1769724647181,-500.0,0.00017037,2]
[404015996,1769724647190,-266.26571856,0.00017037,2]
[404015997,1769724647200,-250.0,0.00017037,2]
[404015998,1769724647210,-578.20924308,0.00017037,2]
[404015999,1769724647219,-500.0,0.00017037,2]
[404016000,1769724647229,-250.0,0.00017037,2]
[404016001,1769724647240,-500.0,0.00017037,2]
[404016002,1769724647249,-250.0,0.00017037,2]
[404016003,1769724647259,-500.0,0.00017037,2]
[404016004,1769724647268,-250.0,0.00017037,2]
[404016005,1769724647277,-500.0,0.00017037,2]
[404016006,1769724647287,-250.0,0.00017037,2]
[404016007,1769724647296,-500.0,0.00017037,2]
[404016008,1769724647305,-250.0,0.00017037,2]
[404016009,1769724647314,-500.0,0.00017037,2]
[404016010,1769724647324,-250.0,0.00017037,2]
[404016011,1769724647334,-500.0,0.00017037,2]
[404016012,1769724647345,-250.0,0.00017037,2]
[404016013,1769724647354,-500.0,0.00017037,2]
[404016014,1769724647363,-250.0,0.00017037,2]
[404016015,1769724647372,-500.0,0.00017037,2]
[404016016,1769724647380,-250.0,0.00017037,2]
[404016017,1769724647391,-500.0,0.00017037,2]
[404016018,1769724647408,-854.2589148,0.00017037,2]
[404016019,1769724647418,-209.40437684,0.00017037,2]
[404016020,1769724647428,-151.0,0.00017037,2]
[404016021,1769724647437,-721.12765535,0.00017037,2]
[404016022,1769724647447,-587.0,0.00017082,2]
[404016023,1769724647456,-10345.41980938,0.00017086,2]
[404016024,1769724647704,-378.87943479,0.00017086,2]
[404016025,1769724647717,-6667.50032111,0.00017086,2]
[404016026,1769724647726,-5765.38971742,0.00017086,2]
[404016027,1769724647736,-217.15233878,0.00017092,2]
[404016028,1769724647747,-500.0,0.00017139,2]
[404016029,1769724647758,-500.0,0.00017139,2]
[404016030,1769724647769,-500.0,0.00017139,2]
[404016031,1769724647780,-500.0,0.00017139,2]
[404016032,1769724647790,-500.0,0.00017139,2]
[404016033,1769724647801,-283.78393949,0.00017139,2]
[404016034,1769724647813,-500.0,0.00017139,2]
[404016035,1769724647824,-500.0,0.00017139,2]
[404016036,1769724647835,-225.18697532,0.00017147,2]
[404016037,1769724647845,-278.0,0.00017169,2]
[404016038,1769724647854,-1857.0,0.00017196,2]
[404016039,1769724647865,-233.51889341,0.00017202,2]
[404016040,1769724647876,-2073.0,0.00017227,2]
[404016041,1769724647886,-2351.0,0.0001723,2]
[404016042,1769724647897,-242.15909246,0.00017257,2]
[404016043,1769724647909,-7869.8799719,0.00017268,2]
[404016044,1769724647922,-562.47335595,0.00017273,2]
[404016045,1769724647932,-158.95639968,0.00017289,2]
[404016046,1769724647942,-251.11897888,0.00017312,2]
[404016047,1769724647954,-49595.4051979,0.0001733,2]
[404016048,1769724647966,-200.0,0.00017364,2]
[404016049,1769724647975,-260.4103811,0.00017367,2]
[404016050,1769724647986,-3843.0,0.00017376,2]
[404016051,1769724647996,-1857.0,0.00017386,2]
[404016052,1769724648008,-2000.0,0.00017398,2]